bitfinex/quotes_ETHUSD_20251110
["timestamp","ask_amount","ask_price","bid_price","bid_amount"]
[1762767787573,1.17668686,3618.4,3618.3,3.8594]
[1762767787878,3.9403393,3618.4,3618.3,3.8594]
[1762767788076,3.9403393,3618.4,3618.3,4.59423457]
[1762767788384,3.9403393,3618.4,3618.3,4.27186457]
[1762767789242,1.17668686,3618.4,3618.3,4.27186457]
[1762767789443,3.9403393,3618.4,3618.3,4.27186457]
[1762767789845,0.72028686,3618.4,3618.3,4.27186457]
[1762767790050,3.0224393,3618.4,3618.3,4.27186457]
[1762767790250,3.9403393,3618.4,3618.3,4.27186457]
[1762767790980,1.17668686,3618.4,3618.3,4.27186457]
[1762767791179,1.17668686,3618.4,3618.3,0.73483457]
[1762767791345,3.9403393,3618.4,3618.3,0.73483457]
[1762767792364,3.9395393,3618.4,3618.3,0.73483457]
[1762767794981,1.17588686,3618.4,3618.3,0.73483457]
[1762767795582,3.9395393,3618.4,3618.3,0.73483457]
[1762767796087,1.17588686,3618.4,3618.3,0.73483457]
[1762767796889,3.9395393,3618.4,3618.3,0.73483457]
[1762767797090,2.76374574,3618.3,3618.2,0.73483457]
[1762767797390,2.7638052,3618.2,3618.1,0.73483457]
[1762767797705,3.2202052,3618.2,3618.1,0.73483457]
[1762767797859,3.6817052,3618.2,3618.1,0.73483457]
[1762767798254,0.9179,3618.2,3618.1,0.73483457]
[1762767798563,0.9179,3618.2,3618.1,0.7352711]
[1762767799082,3.6817052,3618.2,3618.1,0.7352711]
[1762767799260,3.6817052,3618.2,3617.9,0.98145816]
[1762767799456,0.0651,3618.0,3617.9,0.98145816]
[1762767800280,0.5215,3618.0,3617.9,0.98145816]
[1762767801270,0.0651,3618.0,3617.9,0.98145816]
[1762767801967,0.001,3618.4,3617.9,4.68734979]
[1762767802173,0.001,3618.4,3618.2,0.7354135]
[1762767802369,2.76466047,3618.4,3618.2,0.7354135]
[1762767802565,3.22522882,3618.3,3618.2,0.7354135]
[1762767802766,3.68162882,3618.3,3618.2,0.7354135]
[1762767802969,0.9179,3618.3,3618.2,0.7354135]
[1762767804204,1.17675664,3618.3,3618.2,0.7354135]
[1762767805717,0.72035664,3618.3,3618.2,0.7354135]
[1762767806022,0.72035664,3618.3,3618.0,0.97945816]
[1762767806206,0.25885664,3618.2,3618.0,0.97945816]
[1762767806514,0.25885664,3618.1,3618.0,0.97945816]
[1762767807595,0.25885664,3618.1,3618.0,1.44225816]
[1762767807930,0.25885664,3618.1,3618.0,4.20621614]
[1762767808088,0.001,3618.4,3618.2,2.76378827]
[1762767808286,0.001,3618.4,3618.3,5.00024091]
[1762767808470,0.25978792,3618.4,3618.3,5.00024091]
[1762767808715,0.001,3618.4,3618.3,7.76396973]
[1762767808960,0.001,3618.4,3618.3,10.71898458]
[1762767810114,0.001,3618.4,3618.3,12.53522907]
[1762767810319,0.001,3618.4,3618.3,12.18726657]
[1762767811555,0.001,3618.4,3618.3,14.25601458]
[1762767812249,0.001,3618.4,3618.3,13.77021458]
[1762767812865,0.001,3618.4,3618.3,14.25601458]
[1762767814646,0.001,3618.4,3618.3,14.60397708]
[1762767815077,0.001,3618.4,3618.3,14.25601458]
[1762767815289,0.001,3618.4,3618.3,15.72561852]
[1762767815436,0.001,3618.4,3618.3,15.23981852]
[1762767816273,0.0002,3618.4,3618.3,15.23981852]
[1762767817132,0.0002,3618.4,3618.3,15.72561852]
[1762767818256,0.0002,3618.4,3618.3,15.23981852]
[1762767818941,0.0002,3618.4,3618.3,11.98972689]
[1762767819474,0.0002,3618.4,3618.3,12.47552689]
[1762767819669,0.0002,3618.4,3618.3,11.98972689]
[1762767820254,0.0002,3618.4,3618.3,12.47552689]
[1762767820757,0.4679,3618.4,3618.3,11.52692689]
[1762767821286,0.0002,3618.4,3618.3,11.52692689]
[1762767821464,0.0002,3618.4,3618.3,12.47552689]
[1762767822558,0.0002,3618.4,3618.3,11.98972689]
[1762767823466,0.0002,3618.4,3618.3,10.52012295]
[1762767824085,0.0002,3618.4,3618.3,11.98972689]
[1762767825053,0.0002,3618.4,3618.3,10.52012295]
[1762767825248,0.01,3618.9,3618.8,3.16885096]
[1762767825490,0.01,3618.9,3618.8,9.95207237]
[1762767825676,0.01,3619.9,3619.6,2.76267491]
[1762767825865,0.01,3619.9,3619.7,9.67466064]
[1762767826065,0.01,3619.9,3619.7,6.00724486]
[1762767826357,0.01,3619.9,3619.7,5.26406112]
[1762767826554,0.01,3619.9,3619.7,5.57180427]
[1762767826800,0.01,3619.9,3619.7,5.02885727]
[1762767826951,0.01,3619.9,3619.7,5.48703068]
[1762767827267,0.01,3619.9,3619.7,8.735725]
[1762767827490,0.01,3619.9,3619.7,9.67197392]
[1762767828415,0.01,3619.9,3619.7,10.64662327]
[1762767828897,0.01,3619.9,3619.7,10.16082327]
[1762767829218,0.01,3619.9,3619.7,9.77096432]
[1762767829390,0.01,3619.9,3619.7,7.98251738]
[1762767829595,0.01,3619.9,3619.7,7.00830444]
[1762767829835,0.01,3619.9,3619.7,7.98251738]
[1762767830185,0.01,3619.9,3619.7,7.00830444]
[1762767831337,0.01,3619.9,3619.7,10.50135846]
[1762767831541,0.01,3619.9,3619.7,7.73869858]
[1762767831683,0.01,3619.9,3619.7,7.00830444]
[1762767832822,0.01,3619.9,3619.7,4.84375152]
[1762767833023,0.9264,3619.8,3619.7,2.32536781]
[1762767833823,0.475,3619.8,3619.7,2.32536781]
[1762767834024,0.9264,3619.8,3619.7,2.32536781]
[1762767834635,0.003,3619.8,3619.7,2.32536781]
[1762767834822,0.004,3619.8,3619.7,2.32536781]
[1762767835204,0.4846,3619.8,3619.7,2.32536781]
[1762767835409,0.946,3619.8,3619.7,2.32536781]
[1762767836420,0.4846,3619.8,3619.7,2.32536781]
[1762767837299,0.4846,3619.8,3619.7,5.86219781]
[1762767838010,0.4846,3619.8,3619.7,5.1318872]
[1762767838338,0.004,3619.8,3619.7,7.89454708]
[1762767838539,0.5479,3619.8,3619.7,4.96281924]
[1762767838726,0.4846,3619.8,3619.7,4.1216204]
[1762767838928,0.946,3619.8,3619.7,4.1216204]
[1762767839130,0.4846,3619.8,3619.7,4.1216204]
[1762767839330,3.70858356,3619.8,3619.7,4.1216204]
[1762767840106,3.70778356,3619.8,3619.7,4.1216204]
[1762767841806,3.70778356,3619.8,3619.7,3.53683]
[1762767844336,3.96545803,3619.8,3619.7,3.53683]
[1762767844569,2.76265988,3619.7,3619.6,0.002]
[1762767844771,3.67703435,3619.7,3619.6,0.002]
[1762767847381,6.92572867,3619.7,3619.6,0.002]
[1762767848634,2.76288887,3619.4,3619.3,0.002]
[1762767848833,6.74705766,3619.4,3619.3,0.002]
[1762767849071,7.20845766,3619.4,3619.3,0.002]
[1762767850464,7.20845766,3619.4,3617.9,0.002]
[1762767850465,2.76392741,3618.1,3617.9,0.002]
[1762767850647,3.22532741,3618.1,3618.0,0.58522646]
[1762767851176,3.70592741,3618.1,3618.0,0.58522646]
[1762767852462,2.76395798,3618.0,3617.9,0.002]
[1762767852862,2.94655798,3618.0,3617.9,0.002]
[1762767853062,2.94655798,3618.0,3617.9,0.58715771]
[1762767853264,2.94655798,3618.0,3617.9,0.002]
[1762767853786,3.24455798,3618.0,3617.9,0.002]
[1762767854891,2.76395798,3618.0,3617.9,0.4825]
[1762767855390,3.24455798,3618.0,3617.9,0.002]
[1762767855770,0.4806,3618.0,3617.9,0.002]
[1762767855969,3.24455798,3618.0,3617.9,0.002]
[1762767857076,0.4806,3618.0,3617.9,0.002]
[1762767857585,3.24455798,3618.0,3617.9,0.002]
[1762767858363,3.70595798,3618.0,3617.9,0.002]
[1762767863314,0.942,3618.0,3617.9,0.002]
[1762767863473,3.70595798,3618.0,3617.9,0.002]
[1762767863674,0.4806,3618.0,3617.9,0.002]
[1762767863874,2.76386919,3618.2,3617.9,0.4825]
[1762767864074,0.4606,3618.4,3617.9,0.4825]
[1762767864299,0.1966,3618.5,3617.9,0.4825]
[1762767864498,0.25732147,3618.4,3617.9,0.4825]
[1762767864710,2.76377751,3618.3,3617.9,0.4825]
[1762767864891,2.96020836,3618.5,3617.9,0.4825]
[1762767864892,2.76367372,3618.4,3617.9,0.4825]
[1762767865102,2.76372934,3618.3,3618.0,0.37452781]
[1762767865325,0.1966,3618.5,3617.9,0.4825]
[1762767865326,2.76386468,3618.2,3617.9,0.002]
[1762767865694,2.76388159,3618.1,3618.0,0.58566692]
[1762767866108,3.25068159,3618.1,3618.0,0.58566692]
[1762767866303,3.74908159,3618.1,3618.0,0.58566692]
[1762767868026,0.053,3621.7,3618.0,1.80261096]
[1762767868027,0.6932,3618.9,3618.0,1.80261096]
[1762767868202,3.02098535,3618.8,3618.2,0.4863]
[1762767868406,3.45649541,3618.9,3618.3,1.31982268]
[1762767868594,0.4984,3619.2,3618.4,2.18602587]
[1762767868793,0.25773637,3619.1,3618.5,1.31982268]
[1762767869120,0.25773637,3619.0,3618.6,0.58566692]
[1762767869318,0.4984,3619.7,3618.8,0.73415576]
[1762767869509,2.76283014,3619.5,3618.9,1.07196692]
[1762767869709,2.76303282,3619.3,3619.0,0.58566692]
[1762767869906,0.25782652,3619.2,3619.1,0.58566692]
[1762767870330,0.74462652,3619.2,3619.1,0.58566692]
[1762767870710,3.26114595,3619.6,3619.1,0.58566692]
[1762767871027,2.76396521,3619.3,3619.2,0.58566692]
[1762767871242,3.02179628,3619.3,3619.2,0.58566692]
[1762767871431,4.00699628,3619.3,3619.2,0.58566692]
[1762767873052,2.76312492,3619.1,3618.7,0.73415576]
[1762767873232,0.25783107,3619.0,3618.8,0.58679394]
[1762767873558,3.26152741,3619.1,3618.9,0.58679394]
[1762767873757,3.26152741,3619.1,3618.7,0.73415576]
[1762767873758,3.26152741,3619.1,3619.0,0.58679394]
[1762767873957,3.51965206,3619.1,3619.0,0.58679394]
[1762767874154,4.00645206,3619.1,3619.0,0.58679394]
[1762767874960,1.24332465,3619.1,3619.0,0.58679394]
[1762767875255,4.00644255,3619.1,3619.0,0.58679394]
[1762767875552,0.74492465,3619.1,3619.0,0.58679394]
[1762767876759,3.50804255,3619.1,3619.0,0.58679394]
[1762767876946,1.24332465,3619.1,3619.0,0.58679394]
[1762767877458,4.00644255,3619.1,3619.0,0.58679394]
[1762767881950,1.24332465,3619.1,3619.0,0.58679394]
[1762767882368,4.00644255,3619.1,3619.0,0.58679394]
[1762767883851,2.76342835,3618.7,3618.5,4.27098576]
[1762767884047,2.76342835,3618.7,3618.6,0.58713496]
[1762767884251,7.25596671,3618.7,3618.6,0.58713496]
[1762767884446,2.76381724,3618.2,3618.0,0.73415576]
[1762767884677,2.76381724,3618.2,3617.9,0.002]
[1762767884678,0.1409,3618.4,3618.1,0.58759538]
[1762767884879,0.4984,3618.6,3618.2,0.58759538]
[1762767884880,0.25826179,3618.3,3618.2,0.58759538]
[1762767885349,0.74506179,3618.3,3618.2,0.58759538]
[1762767885688,1.24346179,3618.3,3618.2,0.58759538]
[1762767886064,0.25826179,3618.3,3618.2,1.07389538]
[1762767886464,0.25826179,3618.3,3618.2,0.58759538]
[1762767886782,0.25826179,3618.3,3618.2,1.07389538]
[1762767888185,0.25746179,3618.3,3618.2,1.07389538]
[1762767889686,0.25746179,3618.3,3618.2,3.83770058]
[1762767889884,0.25746179,3618.3,3618.2,9.02801416]
[1762767890058,2.76332151,3618.9,3618.2,9.02801416]
[1762767890386,2.76332151,3618.9,3618.3,3.35131885]
[1762767890582,2.76332151,3618.9,3618.4,1.08619538]
[1762767890887,3.26152662,3619.1,3618.5,0.58759538]
[1762767890888,3.26153962,3619.1,3618.5,0.58759538]
[1762767891082,2.7632615,3619.0,3618.6,0.58759538]
[1762767891254,2.76325158,3619.0,3618.7,0.58759538]
[1762767891583,2.76325158,3619.0,3618.4,0.4986]
[1762767891752,2.76329328,3618.9,3618.5,0.58759914]
[1762767892085,2.76329328,3618.9,3618.6,0.58759914]
[1762767892284,2.76329328,3618.9,3618.7,0.58759914]
[1762767892589,2.76329328,3618.9,3618.4,0.4986]
[1762767892785,2.76329328,3618.9,3618.5,0.58773114]
[1762767892965,3.44259328,3618.9,3618.6,0.58773114]
[1762767893161,2.76334696,3618.8,3618.7,0.58773114]
[1762767893375,3.44261631,3618.9,3618.7,0.58773114]
[1762767893688,0.4741,3618.8,3618.3,3.49783129]
[1762767893889,0.4741,3618.8,3618.4,0.58783253]
[1762767894098,0.4741,3618.8,3618.5,0.58783253]
[1762767894388,0.4741,3618.8,3618.6,0.58783253]
[1762767894553,0.4741,3618.8,3618.7,0.58783253]
[1762767895597,3.23744696,3618.8,3618.7,0.58783253]
[1762767896156,0.4741,3618.8,3618.7,0.58783253]
[1762767896359,2.76330171,3618.9,3618.7,0.58783253]
[1762767896708,2.76330171,3618.9,3618.8,0.58783253]
[1762767897057,3.25990171,3618.9,3618.8,0.58783253]
[1762767897258,2.7632706,3618.9,3618.8,0.58783253]
[1762767897458,4.50831885,3619.2,3618.8,0.58783253]
[1762767897657,2.76327271,3618.9,3618.4,4.73008576]
[1762767897959,2.76308942,3619.2,3618.5,7.79408859]
[1762767898156,0.001,3619.3,3618.8,0.4919]
[1762767898393,0.001,3619.3,3618.9,0.58815588]
[1762767898691,0.001,3619.3,3619.0,0.58815588]
[1762767898905,0.001,3619.3,3619.2,0.4919]
[1762767899119,0.001,3619.3,3619.2,1.08005588]
[1762767899413,0.4976,3619.3,3619.2,0.58815588]
[1762767899791,0.001,3619.3,3619.2,1.08005588]
[1762767900203,0.2595466,3619.3,3619.2,0.58815588]
[1762767900515,0.7561466,3619.3,3619.2,0.58815588]
[1762767900879,0.2595466,3619.3,3619.2,3.84309743]
[1762767901306,0.2595466,3619.3,3619.2,5.40706029]
[1762767901701,0.001,3619.3,3619.2,5.40706029]
[1762767902013,0.001,3619.3,3619.2,7.07227629]
[1762767902192,0.001,3619.3,3619.2,7.18284882]
[1762767902393,0.001,3619.3,3619.2,8.64998582]
[1762767902711,0.001,3619.3,3619.2,8.65003702]
[1762767902914,0.001,3619.3,3619.2,7.18284882]
[1762767903415,0.001,3619.3,3619.2,10.43194988]
[1762767904415,0.001,3619.3,3619.2,11.89735019]
[1762767904917,0.001,3619.7,3619.6,3.16824021]
[1762767905078,0.001,3619.7,3619.6,12.75292931]
[1762767905278,0.001,3619.7,3619.6,9.93530089]
[1762767905499,0.001,3619.7,3619.6,13.18440195]
[1762767906108,0.001,3619.7,3619.6,9.93530089]
[1762767906282,0.001,3619.7,3619.6,7.28373446]
[1762767906493,0.001,3619.7,3619.6,6.28069583]
[1762767906914,0.001,3619.7,3619.6,6.68619983]
[1762767907113,0.001,3619.7,3619.6,8.14833846]
[1762767907424,0.001,3619.7,3619.6,0.58815588]
[1762767907425,0.9826,3619.7,3619.6,0.58815588]
[1762767907604,1.24006968,3619.7,3618.7,0.73094249]
[1762767907794,0.74297815,3619.6,3618.8,0.58510047]
[1762767907987,0.25747815,3619.5,3618.9,0.58510047]
[1762767908189,0.4855,3619.6,3619.0,0.58510047]
[1762767908486,3.2482457,3619.6,3618.7,6.01251982]
[1762767908824,0.4855,3619.6,3618.8,0.58515786]
[1762767909019,0.001,3619.7,3618.9,0.58515786]
[1762767909189,0.496,3619.0,3618.5,0.73094249]
[1762767909385,0.496,3619.0,3618.6,0.58524101]
[1762767909586,0.4855,3619.3,3618.7,0.58524101]
[1762767909908,0.001,3619.7,3618.8,0.58524101]
[1762767909909,0.4865,3619.7,3618.8,0.58524101]
[1762767910122,0.25749032,3619.6,3618.8,0.58524101]
[1762767910305,2.76281398,3619.5,3618.8,3.34858552]
[1762767910483,0.4855,3619.5,3618.9,0.58524101]
[1762767910685,3.24831633,3619.5,3618.9,0.58524101]
[1762767910894,3.24832322,3619.5,3618.9,0.58524101]
[1762767911098,2.76371407,3619.7,3618.9,3.34845754]
[1762767911416,3.02019656,3619.6,3618.8,3.22242663]
[1762767911598,3.0202704,3619.5,3618.9,0.58516976]
[1762767911793,0.4855,3619.6,3618.9,3.34841864]
[1762767911994,0.001,3619.7,3619.2,3.24910106]
[1762767912195,0.0002,3619.7,3619.6,0.4919]
[1762767912394,0.0002,3619.7,3619.6,3.25463621]
[1762767912634,0.0002,3619.7,3619.6,4.29890597]
[1762767912821,0.0002,3619.7,3619.6,8.6798176]
[1762767913011,0.0002,3619.7,3619.6,9.38313273]
[1762767913720,0.0002,3619.7,3619.6,6.13403167]
[1762767913945,0.0002,3619.7,3619.6,0.58516976]
[1762767914154,0.4962,3619.7,3619.6,3.34790597]
[1762767914314,0.0002,3619.7,3619.6,3.83980597]
[1762767916071,0.0002,3619.7,3619.6,4.29890597]
[1762767917247,0.0002,3619.7,3619.6,4.40947727]
[1762767917453,0.0002,3619.7,3619.6,5.74811297]
[1762767917822,0.0002,3619.7,3619.6,6.06310676]
[1762767918153,0.0002,3619.7,3619.6,8.82584297]
[1762767918631,0.0002,3619.7,3619.6,4.61332799]
[1762767918821,0.0002,3619.7,3619.6,7.3760642]
[1762767919022,0.0002,3619.7,3619.6,4.72390663]
[1762767919324,0.0002,3619.7,3619.6,4.13930864]
[1762767919876,0.4962,3619.7,3619.6,3.64740864]
[1762767920074,1.23912021,3619.7,3618.8,2.76328924]
[1762767920225,2.76788466,3619.5,3618.9,0.11059974]
[1762767920556,2.76295469,3619.4,3618.9,0.11059974]
[1762767920884,0.4911,3619.0,3618.6,3.49423161]
[1762767921025,0.4911,3619.0,3618.7,3.51243621]
[1762767921225,0.4911,3619.0,3618.7,4.34194114]
[1762767921437,0.0098,3618.8,3618.7,0.74901616]
[1762767921636,0.0098,3618.8,3618.6,3.59297817]
[1762767922255,0.0098,3618.8,3618.6,4.32372565]
[1762767922453,0.4855,3619.0,3618.7,2.76336739]
[1762767922660,0.4855,3619.4,3618.7,2.7633646]
[1762767922861,3.24839361,3619.4,3618.8,2.76331422]
[1762767923052,0.4855,3619.4,3618.8,2.76331422]
[1762767923247,0.4855,3619.4,3618.6,1.56027994]
[1762767923484,0.4855,3619.4,3618.6,1.98581381]
[1762767923682,0.4855,3619.4,3618.6,2.44491381]
[1762767923980,0.0002,3619.7,3619.3,0.4919]
[1762767924287,0.0002,3619.7,3619.6,0.4919]
[1762767924893,0.0002,3619.7,3619.6,0.9866]
[1762767925076,0.0002,3619.7,3619.6,1.69411688]
[1762767925279,0.0002,3619.7,3619.6,1.93016436]
[1762767926205,0.0002,3619.7,3619.6,1.60238219]
[1762767926405,0.0002,3619.7,3619.6,5.46699436]
[1762767926760,0.0002,3619.7,3619.6,5.13921219]
[1762767927370,0.0002,3619.7,3619.6,5.47466103]
[1762767927575,0.0002,3619.7,3619.6,4.64731219]
[1762767927789,0.4939,3619.7,3619.6,4.64731219]
[1762767928156,0.4939,3619.7,3619.6,4.37815276]
[1762767928157,0.9498,3619.7,3619.6,4.37815276]
[1762767928352,0.9498,3619.7,3619.6,3.64740528]
[1762767928353,1.2078082,3619.7,3619.6,3.64740528]
[1762767928593,0.7519082,3619.7,3619.6,3.53683]
[1762767928895,0.0002,3619.7,3619.6,3.53683]
[1762767929091,0.4939,3619.7,3619.6,3.53683]
[1762767929596,0.4939,3619.7,3619.4,3.53683]
[1762767929959,0.0002,3619.7,3619.6,1.20044748]
[1762767930157,0.0002,3619.7,3619.6,1.2382802]
[1762767930379,0.0002,3619.7,3619.6,1.7329802]
[1762767930591,0.0002,3619.7,3619.6,1.70535284]
[1762767930758,0.0002,3619.7,3619.6,2.65756576]
[1762767931593,0.0002,3619.7,3619.4,1.91630597]
[1762767931594,0.4939,3619.7,3619.5,1.46497035]
[1762767931777,0.0002,3619.7,3619.6,0.4697]
[1762767932180,0.0002,3619.7,3619.4,2.61626432]
[1762767932181,0.0002,3619.7,3619.4,2.12156432]
[1762767932380,0.4939,3619.7,3619.5,0.97678418]
[1762767932590,0.4939,3619.7,3619.4,0.97678418]
[1762767932806,0.0002,3619.7,3619.4,0.97678418]
[1762767932966,0.0002,3619.7,3619.6,0.4697]
[1762767933168,0.0002,3619.7,3619.4,0.97678418]
[1762767933478,0.0002,3619.7,3619.6,0.73266993]
[1762767933780,0.4561,3619.7,3619.6,0.73266993]
[1762767933962,0.9498,3619.7,3619.4,0.97678418]
[1762767934160,0.9498,3619.7,3619.6,0.73283647]
[1762767934359,0.0002,3619.7,3619.6,0.73283647]
[1762767934596,0.0002,3619.7,3619.4,0.97678418]
[1762767934796,0.0002,3619.7,3619.6,0.4697]
[1762767935001,0.0002,3619.7,3619.4,0.97678418]
[1762767935206,0.0002,3619.7,3619.5,0.97678418]
[1762767935567,0.0002,3619.7,3619.5,1.17228418]
[1762767935769,0.0002,3619.7,3619.6,0.4697]
[1762767936196,0.01,3619.9,3619.6,0.4697]
[1762767936197,0.0026,3619.8,3619.6,0.4697]
[1762767936516,0.0026,3619.8,3619.7,0.73300796]
[1762767937424,0.0026,3619.8,3619.7,1.5736568]
[1762767938226,0.0026,3619.8,3619.7,0.84064884]
[1762767938422,0.0026,3619.8,3619.5,1.17228418]
[1762767938585,0.0026,3619.8,3619.7,0.4697]
[1762767938789,0.0026,3619.8,3619.7,0.82665759]
[1762767938990,0.0026,3619.8,3619.7,1.71582712]
[1762767939684,0.0026,3619.8,3619.7,2.6926113]
[1762767939889,0.0026,3619.8,3619.7,1.71582712]
[1762767940126,0.0026,3619.8,3619.7,3.58630147]
[1762767940307,0.0026,3619.8,3619.7,3.20171729]
[1762767940512,0.0026,3619.8,3619.7,3.55667488]
[1762767940707,0.0026,3619.8,3619.7,1.93467035]
[1762767940907,0.0026,3619.8,3619.7,0.9644]
[1762767941122,0.0026,3619.8,3619.7,1.34698418]
[1762767941330,0.0026,3619.8,3619.7,2.78432794]
[1762767941709,0.0026,3619.8,3619.7,3.18983194]
[1762767941921,0.0026,3619.8,3619.7,3.51987269]
[1762767943806,0.0026,3619.8,3619.7,3.02517269]
[1762767944116,0.0026,3619.8,3619.7,0.4697]
[1762767944521,0.0026,3619.8,3619.7,2.42937035]
[1762767944707,0.0026,3619.8,3619.7,2.81757794]
[1762767944907,0.0026,3619.8,3619.7,5.96620035]
[1762767945710,0.0026,3619.8,3619.7,4.50123]
[1762767946026,0.0026,3619.8,3619.7,5.10910759]
[1762767946829,0.0026,3619.8,3619.7,6.96228553]
[1762767947416,0.0026,3619.8,3619.7,5.49731518]
[1762767947618,0.0026,3619.8,3619.7,8.62750153]
[1762767947934,0.0026,3619.8,3619.7,7.16253118]
[1762767949431,0.0026,3619.8,3619.7,13.46253118]
[1762767949630,0.0026,3619.8,3619.7,13.43709251]
[1762767951198,0.007,3620.1,3620.0,1.665216]
[1762767951398,0.007,3620.1,3620.0,5.06893482]
[1762767951799,0.5007,3620.1,3620.0,4.45193038]
[1762767952026,0.007,3620.1,3620.0,3.45603201]
[1762767952221,0.007,3620.1,3620.0,4.92163038]
[1762767953017,0.007,3620.1,3620.0,5.80423438]
[1762767953254,0.007,3620.1,3620.0,4.73373826]
[1762767953554,0.007,3620.1,3620.0,8.25796826]
[1762767954454,0.007,3620.1,3620.0,10.21655362]
[1762767954660,0.01,3620.9,3620.1,0.76987968]
[1762767954954,0.01,3620.9,3620.8,1.46680095]
[1762767955113,0.01,3620.9,3620.8,1.83117663]
[1762767955523,0.01,3620.9,3620.8,1.17140095]
[1762767955724,0.01,3620.9,3620.8,1.65600095]
[1762767956165,0.01,3620.9,3620.8,2.05245997]
[1762767956325,0.01,3620.9,3620.8,2.57739731]
[1762767956526,0.01,3620.9,3620.8,5.23003198]
[1762767956739,0.003,3621.1,3620.9,2.06167502]
[1762767956940,0.003,3621.1,3621.0,0.4846]
[1762767957158,0.003,3621.1,3621.0,1.35132568]
[1762767957358,0.003,3621.1,3621.0,1.94797071]
[1762767957667,0.003,3621.1,3621.0,2.35347471]
[1762767957968,0.003,3621.1,3621.0,5.56799118]
[1762767958356,0.003,3621.1,3621.0,3.61318671]
[1762767958555,0.003,3621.1,3621.0,3.58557003]
[1762767959564,0.003,3621.1,3621.0,8.81936249]
[1762767959732,0.01,3622.9,3621.6,7.17046982]
[1762767959933,0.2043,3622.9,3621.6,7.11745448]
[1762767960252,0.0022,3621.7,3621.6,2.86686298]
[1762767960645,0.0022,3621.7,3621.6,3.33796298]
[1762767961166,0.0022,3621.7,3621.6,3.73358866]
[1762767961873,0.0022,3621.7,3621.6,3.33796298]
[1762767962233,0.0022,3621.7,3621.6,5.16548145]
[1762767963149,0.0022,3621.7,3621.6,3.70761608]
[1762767964061,0.0022,3621.7,3621.6,3.33796298]
[1762767964361,0.0032,3621.7,3621.6,3.33796298]
[1762767964556,0.0032,3621.7,3621.6,3.44844511]
[1762767965258,0.0032,3621.7,3621.6,2.57184111]
[1762767965458,0.0032,3621.7,3621.6,2.32589413]
[1762767965662,0.0032,3621.7,3621.6,3.10105123]
[1762767966185,0.0032,3621.7,3621.6,3.70227843]
[1762767967445,0.0032,3621.7,3621.6,4.07193153]
[1762767968081,0.0032,3621.7,3621.6,3.70227843]
[1762767968248,0.0032,3621.7,3621.6,4.22401281]
[1762767968453,0.0032,3621.7,3621.6,3.75291281]
[1762767969384,0.0032,3621.7,3621.6,4.12256591]
[1762767969763,0.0032,3621.7,3621.6,6.70352771]
[1762767969958,0.0032,3621.7,3621.6,4.59366591]
[1762767970775,0.0032,3621.7,3621.6,4.22401281]
[1762767970968,0.0032,3621.7,3621.6,2.29743251]
[1762767971185,0.0032,3621.7,3621.6,3.15168561]
[1762767971418,0.0032,3621.7,3621.6,3.62278561]
[1762767972610,0.0032,3621.7,3621.6,3.15168561]
[1762767972922,0.0032,3621.7,3621.6,4.12256591]
[1762767973280,0.0032,3621.7,3621.6,3.62278561]
[1762767973485,0.0032,3621.7,3621.6,5.08065098]
[1762767973708,0.0032,3621.7,3621.6,8.63140049]
[1762767974020,0.0032,3621.7,3621.6,8.60378839]
[1762767974182,0.0032,3621.7,3621.6,7.76303529]
[1762767974385,0.0032,3621.7,3621.6,8.23413529]
[1762767974715,0.0032,3621.7,3621.6,8.60378839]
[1762767975285,0.0032,3621.7,3621.6,7.14701561]
[1762767976086,0.0032,3621.7,3621.6,7.12221561]
[1762767976795,0.0032,3621.7,3621.6,7.68735756]
[1762767977181,0.0032,3621.7,3621.6,6.65111561]
[1762767977386,0.0032,3621.7,3621.6,6.77736251]
[1762767977587,0.0032,3621.7,3621.6,7.10437394]
[1762767977808,0.0032,3621.7,3621.6,6.77736251]
[1762767978032,0.0032,3621.7,3621.6,8.23528017]
[1762767978427,0.0032,3621.7,3621.6,7.10437394]
[1762767978841,0.0032,3621.7,3621.6,6.77736251]
[1762767979138,0.0032,3621.7,3621.6,7.10437394]
[1762767979638,0.0032,3621.7,3621.6,7.60437394]
[1762767979838,0.0032,3621.7,3621.6,10.51437394]
[1762767980039,0.0032,3621.7,3621.6,7.10437394]
[1762767981538,0.0032,3621.7,3621.6,10.01437394]
[1762767982123,0.0032,3621.7,3621.6,9.68736251]
[1762767982439,0.2043,3622.9,3621.8,3.315504]
[1762767982627,0.01,3622.9,3621.8,9.38588182]
[1762767982831,0.01,3622.9,3621.8,9.70381575]
[1762767983036,0.01,3622.9,3621.9,6.235216]
[1762767983338,0.01,3622.9,3622.8,4.575216]
[1762767983547,0.01,3622.9,3622.8,3.118988]
[1762767983903,0.01,3622.9,3622.8,2.646688]
[1762767984249,0.0092,3622.9,3622.8,2.646688]
[1762767984926,0.0092,3622.9,3622.8,5.88684238]
[1762767985126,0.0092,3622.9,3622.8,8.29728714]
[1762767985326,0.0092,3622.9,3622.8,9.74774238]
[1762767985534,0.0092,3622.9,3622.8,11.69396304]
[1762767985735,0.01,3623.9,3623.0,3.812604]
[1762767986049,0.01,3623.9,3623.8,7.34812583]
[1762767986550,0.01,3623.9,3623.8,7.80192583]
[1762767986948,0.01,3623.9,3623.8,5.40247038]
[1762767987318,0.01,3623.9,3623.8,4.90537038]
[1762767987518,0.9781,3623.9,3623.8,1.665216]
[1762767987757,1.1738,3623.9,3623.8,2.165316]
[1762767988419,0.677,3623.9,3623.8,0.5001]
[1762767988632,1.1738,3623.9,3623.8,0.905604]
[1762767989259,0.677,3623.9,3623.8,0.905604]
[1762767989554,0.4816,3623.9,3623.8,1.87693236]
[1762767990054,0.4816,3623.9,3623.8,0.905604]
[1762767990420,0.01,3623.9,3623.8,0.905604]
[1762767990627,0.01,3623.9,3623.8,2.70745798]
[1762767990851,0.01,3623.9,3623.8,1.73612962]
[1762767991379,0.4813,3623.9,3623.8,1.23902962]
[1762767991527,0.01,3623.9,3623.8,1.23902962]
[1762767992037,1.1739,3623.9,3623.8,0.905604]
[1762767992236,0.4816,3623.9,3623.8,0.905604]
[1762767993159,1.1739,3623.9,3623.8,0.5001]
[1762767993327,1.1739,3623.9,3623.8,0.905604]